bitfinex-derivatives/quotes_ETHF0:USTF0_20240907
["timestamp","ask_amount","ask_price","bid_price","bid_amount"]
[1725673948405,0.4494,2225.7,2225.6,0.81912]
[1725673949908,1.29,2225.8,2225.6,0.3697]
[1725673950109,0.44932,2226.2,2225.7,12.41617075]
[1725673950310,0.44932,2226.1,2225.9,1.62424664]
[1725673950614,4.11,2226.3,2226.0,1.19104]
[1725673950615,0.44932,2226.2,2226.0,1.19104]
[1725673950799,4.11,2226.3,2226.0,1.19104]
[1725673951000,0.44928,2226.4,2226.0,0.7417]
[1725673951201,4.33089,2226.6,2226.0,0.7417]
[1725673951202,0.44922,2226.7,2226.4,0.44925]
[1725673951508,1.29,2226.7,2226.5,1.19093]
[1725673951711,1.7392,2226.7,2226.5,1.19093]
[1725673952207,1.73921,2226.7,2226.5,1.19093]
[1725673957014,1.7392,2226.7,2226.5,1.19093]
[1725673957706,0.44926,2226.4,2226.3,3.2078]
[1725673958420,0.44928,2226.4,2226.2,0.4493]
[1725673958710,0.44928,2226.3,2226.1,0.84661]
[1725673958912,1.29,2226.5,2226.1,0.84661]
[1725673959113,0.44928,2226.4,2226.1,0.84661]
[1725673959312,0.44928,2226.4,2226.2,0.4493]
[1725673960308,0.4493,2226.2,2226.1,0.3973]
[1725673960509,0.4493,2226.2,2225.9,1.76559657]
[1725673960510,7.441,2226.4,2225.9,1.62424664]
[1725673960712,0.44933,2226.1,2225.9,0.44935]
[1725673962713,0.44935,2226.0,2225.8,2.00756664]
[1725673962924,3.11,2226.1,2225.7,1.54879664]
[1725673963122,0.44935,2226.0,2225.8,0.44938]
[1725673964119,3.55933,2226.1,2225.9,0.44936]
[1725673964320,3.55933,2226.1,2225.7,1.94229664]
[1725673964619,3.55933,2226.1,2225.8,0.44938]
[1725673964912,0.85051,2226.2,2225.7,1.94229664]
[1725673965113,0.44931,2226.2,2226.0,0.44933]
[1725673966127,1.12352,2225.7,2225.6,1.17481709]
[1725673966421,1.12352,2225.7,2225.1,3.50390257]
[1725673966422,1.12374,2225.3,2224.8,1.70251709]
[1725673966611,0.44955,2225.0,2224.8,0.7477]
[1725673966813,0.44957,2224.9,2224.8,0.7477]
[1725673967210,0.44956,2225.0,2224.8,0.7477]
[1725673967508,3.55954,2225.1,2224.8,0.7477]
[1725673968314,0.44955,2225.0,2224.8,0.7477]
[1725673968511,0.44957,2224.9,2224.3,3.2078]
[1725673968714,0.44957,2224.9,2224.5,1.23154]
[1725673969823,0.44956,2225.0,2224.6,0.44963]
[1725673970122,0.44956,2225.0,2224.5,1.23154]
[1725673970821,0.44957,2225.0,2224.5,1.23154]
[1725673971024,0.44957,2224.9,2224.5,1.23154]
[1725673971914,0.44957,2224.9,2224.6,0.44963]
[1725673972110,0.44957,2224.9,2224.5,1.23153]
[1725673972316,0.44957,2224.9,2224.6,0.44963]
[1725673972517,0.44957,2224.9,2224.5,1.23154]
[1725673972723,3.55957,2224.9,2224.5,1.23154]
[1725673974123,6.76737,2224.9,2224.5,1.23154]
[1725673974921,6.3178,2224.6,2224.0,2.35703474]
[1725673975122,6.3178,2224.6,2224.0,0.83235]
[1725673975123,3.11,2224.2,2224.0,0.83235]
[1725673975418,0.3623,2224.5,2224.0,0.83235]
[1725673975419,8.9976858,2224.5,2224.1,0.44972]
[1725673975620,3.92195,2224.5,2224.1,0.44972]
[1725673975816,0.44967,2224.4,2224.0,0.83234]
[1725673976012,3.11,2224.3,2224.0,0.83234]
[1725673976220,3.11,2224.3,2224.0,0.3826]
[1725673976727,3.5597,2224.3,2224.0,0.3826]
[1725673977723,3.11,2224.3,2224.0,0.3826]
[1725673978126,3.5597,2224.3,2224.0,0.3826]
[1725673982230,3.11,2224.3,2224.0,0.83235]
[1725673982826,3.55969,2224.3,2224.0,0.3826]
[1725673983724,3.11,2224.3,2224.0,0.83235]
[1725673983926,3.55969,2224.3,2224.0,0.3826]
[1725673984329,3.11,2224.3,2224.0,0.3826]
[1725673984524,3.5597,2224.3,2224.0,0.83235]
[1725673985833,3.11,2224.3,2224.0,0.83235]
[1725673986018,3.55969,2224.3,2224.0,0.3826]
[1725673986224,3.11,2224.3,2224.0,0.3826]
[1725673986423,3.5597,2224.3,2224.0,0.3826]
[1725673986628,0.44971,2224.2,2224.0,0.3826]
[1725673986827,1e-08,2224.2,2224.0,0.3826]
[1725673987026,0.44971001,2224.2,2224.0,0.3826]
[1725673987526,1e-08,2224.2,2224.0,0.3826]
[1725673987720,0.44972001,2224.2,2224.0,0.3826]
[1725673988821,1e-08,2224.2,2224.0,0.3826]
[1725673989032,0.44971001,2224.2,2224.0,0.3826]
[1725673990928,1e-08,2224.2,2224.0,0.3826]
[1725673991633,1e-08,2224.2,2224.0,0.83234]
[1725673992937,1e-08,2224.2,2224.1,0.44973]
[1725673993630,1e-08,2224.2,2224.0,0.3826]
[1725673993830,3.55973,2224.1,2224.0,0.3826]
[1725673994741,3.55975,2224.1,2223.9,0.3988]
[1725673995032,3.92415,2224.1,2223.9,0.3988]
[1725673995237,7.7046,2224.0,2223.3,3.2078]
[1725673995448,3.11,2223.6,2223.5,0.44984]
[1725673995838,3.11,2223.6,2223.4,0.82016]
[1725673996050,3.55983,2223.6,2223.4,0.3703]
[1725673996254,3.4996,2223.6,2223.2,0.4024]
[1725673996460,3.94944,2223.6,2223.3,0.44988]
[1725673997063,3.94944,2223.6,2223.2,0.4024]
[1725673997064,0.44985,2223.5,2223.2,0.8523]
[1725673997254,0.44985,2223.5,2223.3,0.44989]
[1725673997453,3.94944,2223.6,2223.3,0.44989]
[1725673997655,3.11,2223.6,2223.4,0.44987]
[1725673998060,3.55983,2223.6,2223.3,0.44988]
[1725673998266,3.11,2223.6,2223.4,0.44986]
[1725673998465,1.51405,2223.9,2223.2,0.4024]
[1725673998466,0.83937,2223.9,2223.6,0.44981]
[1725673998758,0.44986,2223.5,2222.7,4.33278]
[1725673998954,3.11,2223.4,2223.0,3.9463]
[1725673999154,3.11,2223.4,2223.3,0.44989]
[1725673999564,3.11,2223.6,2223.0,3.9463]
[1725673999758,3.11,2223.6,2223.4,0.44986]
[1725674000260,3.11,2223.6,2223.5,0.44985]
[1725674000757,3.11,2223.6,2223.1,1.12483]
[1725674000958,3.11,2223.6,2223.5,0.44985]
[1725674002563,3.4996,2223.9,2223.4,3.2078]
[1725674002768,3.2078,2224.6,2224.1,0.44973]
[1725674002965,0.3849,2224.6,2224.1,3.65753]
[1725674003161,0.3849,2224.6,2224.1,8.15353]
[1725674003356,0.3849,2224.6,2224.4,0.44966]
[1725674004264,4.3316,2225.2,2224.3,0.3905]
[1725674004470,0.44957,2224.9,2224.6,0.44962]
[1725674004669,3.11,2225.0,2224.4,3.2078]
[1725674004876,3.11,2225.1,2224.9,0.44956]
[1725674005371,3.11,2225.1,2225.0,0.44955]
[1725674006967,3.11,2225.1,2224.9,0.44955]
[1725674008264,0.44959,2224.8,2224.1,5.56483474]
[1725674008465,3.55967,2224.4,2224.1,0.44971]
[1725674008660,3.11,2224.4,2224.1,0.44971]
[1725674008875,3.11,2224.4,2224.2,0.4497]
[1725674009077,3.55963,2224.6,2224.3,0.44969]
[1725674009269,3.55963,2224.6,2224.2,0.4497]
[1725674009463,3.55963,2224.6,2223.8,5.08574]
[1725674009975,3.55963,2224.6,2224.2,0.44969]
[1725674011070,3.11,2224.6,2224.1,0.44971]
[1725674011271,3.11,2224.4,2223.9,0.44976]
[1725674011473,0.44971,2224.3,2223.9,0.44976]
[1725674012169,0.44972,2224.2,2223.9,0.44976]
[1725674012479,0.4497,2224.3,2223.9,0.44977]
[1725674012675,0.44971,2224.2,2223.9,0.44977]
[1725674014363,0.44972,2224.2,2223.9,0.44977]
[1725674014774,0.4497,2224.3,2223.9,0.44977]
[1725674015281,0.4497,2224.3,2223.6,0.3723]
[1725674015282,0.44984,2223.6,2223.1,0.44992]
[1725674015478,0.44984,2223.6,2223.1,0.3723]
[1725674015670,3.55982,2223.7,2223.2,0.44989]
[1725674015975,3.11,2223.7,2223.3,0.44989]
[1725674016278,3.11,2223.7,2223.3,0.44988]
[1725674016482,3.55982,2223.7,2223.2,0.44989]
[1725674016782,3.11,2223.7,2223.2,0.44989]
[1725674017371,3.55982,2223.7,2223.2,0.44989]
[1725674017572,3.11,2223.7,2223.2,0.44989]
[1725674018471,3.11,2223.7,2223.1,0.3723]
[1725674018773,3.11,2223.7,2223.3,0.44989]
[1725674019077,3.11,2223.9,2223.3,0.44988]
[1725674019381,0.44979,2223.8,2223.3,0.44988]
[1725674020183,0.44981,2223.7,2223.3,3.2078]
[1725674021567,3.11,2223.9,2223.3,3.2078]
[1725674021780,0.44982,2223.7,2223.3,3.2078]
[1725674022579,0.44986,2223.5,2223.1,0.3723]
[1725674022980,0.44987,2223.4,2223.1,0.3723]
[1725674023274,0.44986,2223.5,2223.1,0.3723]
[1725674024079,3.55984,2223.6,2223.1,0.82223]
[1725674024283,3.11,2223.6,2223.2,0.44991]
[1725674025085,3.55984,2223.6,2223.1,0.82221]
[1725674025285,3.11,2223.6,2223.1,0.82221]
[1725674025585,0.44986,2223.5,2223.1,0.3723]
[1725674026385,0.44988,2223.4,2223.1,0.3723]
[1725674026581,6.3178,2223.4,2222.7,1.76077692]
[1725674026788,3.11,2223.1,2222.8,0.44999]
[1725674026979,3.11,2223.3,2223.0,0.44994]
[1725674027179,3.11,2223.3,2222.9,3.2078]
[1725674027380,3.11,2223.3,2223.0,0.44995]
[1725674027785,3.11,2223.3,2223.2,0.44991]
[1725674028096,7.66984,2223.6,2223.2,0.44991]
[1725674028385,7.66984,2223.6,2223.3,0.81239]
[1725674028386,3.55984,2223.6,2223.3,0.81239]
[1725674028787,3.11,2223.6,2223.3,0.3625]
[1725674028974,3.11,2223.6,2223.3,0.81238]
[1725674029379,3.55984,2223.6,2223.3,0.81239]
[1725674033583,3.11,2223.6,2223.4,0.44987]
[1725674033779,3.5457,2223.8,2223.3,0.81238]
[1725674033984,3.11,2223.7,2223.3,0.81238]
[1725674034176,3.55983,2223.7,2223.3,0.81238]
[1725674034594,0.44983,2223.6,2223.3,0.81238]
[1725674034786,3.55982,2223.7,2223.4,0.44987]
[1725674034984,3.55982,2223.7,2223.3,0.3625]
[1725674034985,3.11,2223.7,2223.6,0.44983]
[1725674035284,3.11,2223.7,2223.5,0.44983]
[1725674036087,3.11,2223.7,2223.6,0.44983]
[1725674036881,3.11,2223.7,2223.4,0.3965]
[1725674037084,3.11,2224.2,2223.8,0.44977]
[1725674037279,3.11,2224.2,2223.5,7.7054]
[1725674037280,3.55972,2224.2,2223.9,0.82537]
[1725674037478,0.4497,2224.3,2224.0,0.44975]
[1725674037690,3.11,2224.2,2224.0,0.44975]
[1725674038081,3.55971,2224.2,2223.9,0.82535]
[1725674038283,3.11,2224.2,2223.9,0.82535]
[1725674038484,3.11,2224.2,2224.0,0.44975]
[1725674038683,3.55972,2224.2,2223.9,0.82536]
[1725674038892,3.55972,2224.2,2223.9,0.3756]
[1725674039190,0.44973,2224.1,2223.9,0.3756]
[1725674039386,3.55972,2224.2,2223.9,0.82537]
[1725674040695,3.11,2224.2,2224.1,0.44973]
[1725674041994,7.10538,2224.4,2224.1,0.44973]
[1725674044194,0.44971,2224.2,2224.0,0.44974]
[1725674044590,6.6557,2224.4,2224.0,0.44974]
[1725674044790,0.44969,2224.3,2224.1,0.44973]
[1725674048293,0.44969,2224.3,2224.0,0.44973]
[1725674048493,0.44969,2224.3,2224.1,0.44972]
[1725674049792,7.10537,2224.4,2224.2,0.44971]
[1725674049991,7.10537,2224.4,2224.1,0.44971]
[1725674050396,7.10537,2224.4,2223.9,0.3756]
[1725674050397,6.3178,2224.4,2223.9,0.3756]
[1725674050999,0.22691994,2224.5,2224.0,1.12438]
[1725674051303,3.55964,2224.6,2224.3,0.44968]
[1725674051494,0.23024065,2224.5,2224.4,0.44967]
[1725674052401,0.23024065,2224.5,2224.1,0.3745]
[1725674052402,0.67989065,2224.5,2224.3,0.44967]
[1725674052701,0.23024065,2224.5,2224.3,0.44967]
[1725674053401,0.67989065,2224.5,2224.3,0.44967]
[1725674053800,0.23024065,2224.5,2224.3,0.44967]
[1725674054900,0.67989065,2224.5,2224.3,0.44967]
[1725674055304,0.23024065,2224.5,2224.3,0.44967]
[1725674056001,0.67989065,2224.5,2224.3,0.44967]
[1725674056701,0.67989065,2224.5,2224.1,0.3745]
[1725674056702,0.23024065,2224.5,2224.1,0.3745]
[1725674056906,0.67990065,2224.5,2224.2,0.4497]
[1725674057096,0.67990065,2224.5,2224.3,0.44968]
[1725674057500,0.67990065,2224.5,2224.1,0.3745]
[1725674057802,0.67990065,2224.5,2224.3,0.44968]
[1725674058600,0.44967,2224.4,2224.2,0.4497]
[1725674058801,0.44968,2224.4,2224.2,0.4497]
[1725674059305,0.67605799,2224.4,2224.2,0.4497]
[1725674060203,0.22637799,2224.4,2224.2,0.4497]
[1725674060403,0.44967,2224.4,2224.2,0.4497]
[1725674061010,0.67426346,2224.4,2224.2,0.4497]
[1725674061604,0.22459346,2224.4,2224.2,0.4497]
[1725674061805,0.44966,2224.5,2224.2,0.4497]
[1725674062011,0.22367106,2224.4,2224.2,0.4497]
[1725674062503,0.22367106,2224.4,2224.3,0.3708]
[1725674062909,0.44966,2224.5,2224.3,0.3708]
[1725674064312,0.44967,2224.4,2224.3,0.3708]
[1725674065803,0.44966,2224.5,2224.3,0.82049]
[1725674066511,0.44965,2224.5,2224.3,0.3708]
[1725674066713,0.44965,2224.5,2224.3,0.82047]
[1725674068021,3.55964,2224.6,2224.3,0.82047]
[1725674069418,0.44964,2224.6,2224.3,0.82047]
[1725674071719,12.44039256,2225.2,2224.5,3.2078]
[1725674071921,0.44955,2225.0,2224.5,3.2078]
[1725674072221,0.44954,2225.1,2224.8,0.44958]
[1725674072429,0.44955,2225.0,2224.9,0.3836]
[1725674078419,4.4944,2225.0,2224.6,0.3744]
[1725674078722,0.44961,2224.7,2224.6,0.3744]
[1725674078915,0.44961,2224.7,2224.6,0.7639]
[1725674080820,0.4496,2224.8,2224.6,0.7639]
[1725674081420,0.4496,2224.8,2224.6,1.21353]
[1725674082527,0.44961,2224.7,2224.6,0.7639]
[1725674082716,0.4496,2224.8,2224.6,0.7639]
[1725674083227,0.4496,2224.8,2224.6,1.21353]
[1725674083927,1.11658269,2225.1,2224.8,0.44957]
[1725674084128,1.11658269,2225.1,2224.9,0.44957]
[1725674084323,1.11658269,2225.1,2225.0,0.3927]
[1725674084624,0.49129807,2225.1,2225.0,0.3927]
[1725674086125,0.04175807,2225.1,2225.0,0.3927]
[1725674086428,0.04175807,2225.1,2225.0,0.84225]
[1725674086928,0.04175807,2225.1,2225.0,0.3927]
[1725674087130,0.44952,2225.2,2225.0,0.84225]
[1725674087530,0.44952,2225.2,2225.1,0.3758]
[1725674087933,4.98568291,2225.2,2225.1,0.3758]
[1725674089927,6.28568291,2225.2,2225.1,0.3758]
[1725674090728,5.83616291,2225.2,2225.1,0.82533]
[1725674091034,5.83616291,2225.2,2225.1,0.3758]
[1725674091035,6.28567291,2225.2,2225.1,0.3758]
[1725674091338,6.24391,2225.2,2225.1,0.3758]
[1725674092338,9.45171,2225.2,2225.1,0.3758]
[1725674093335,1.3,2225.4,2225.1,0.3758]
[1725674093536,1.74947,2225.4,2225.2,0.4495]
[1725674094723,1.3,2225.4,2225.3,0.44948]
[1725674095130,1.74946,2225.4,2225.3,0.44948]
[1725674095330,1.74946,2225.4,2225.2,0.44949]
[1725674095530,0.44946,2225.4,2225.2,0.44949]
[1725674097030,0.44947,2225.4,2225.2,0.44949]
[1725674099339,0.44947,2225.4,2225.1,4.03311]
[1725674099533,0.44947,2225.4,2225.2,0.4495]
[1725674100131,0.44949,2225.3,2225.1,4.03312]
[1725674108642,0.44949,2225.3,2225.1,0.82532]
[1725674111456,0.44951,2225.2,2225.1,0.3758]
[1725674111857,0.44951,2225.2,2225.1,0.82533]
[1725674114359,0.49127325,2225.2,2225.1,0.82533]
[1725674114661,0.04176325,2225.2,2225.1,0.82533]
[1725674115066,0.4495,2225.3,2225.1,0.82533]
[1725674115866,0.4495,2225.3,2225.1,2.00177453]
[1725674117167,0.4495,2225.3,2225.2,1.17644453]
[1725674117362,0.49123513,2225.3,2225.2,1.17644453]
[1725674117564,0.04173513,2225.3,2225.2,1.17644453]
[1725674117763,5.46095739,2225.7,2225.4,0.44946]
[1725674117764,0.44944,2225.6,2225.4,0.44946]
[1725674118076,0.44944,2225.6,2225.5,1.92837125]
[1725674119266,0.49114444,2225.6,2225.5,0.7511]
[1725674120073,1.79114444,2225.6,2225.5,0.7511]
[1725674120570,9.04310444,2225.6,2225.2,1.17727125]
[1725674120775,2.42367,2225.4,2225.1,1.54547125]
[1725674121068,0.44951,2225.2,2225.1,0.3682]
[1725674121971,0.44951,2225.2,2225.1,1.54547125]
[1725674122363,0.4495,2225.3,2225.1,8.73820323]
[1725674122559,0.4495,2225.3,2225.2,1.62678125]
[1725674123368,0.4495,2225.3,2225.2,1.17727125]
[1725674124073,0.4495,2225.3,2225.1,0.81771]
[1725674124867,0.4495,2225.3,2225.2,0.44951]
[1725674125064,0.4495,2225.3,2225.1,0.81772]
[1725674126576,0.4495,2225.3,2225.1,0.3682]
[1725674126769,2.65093739,2225.7,2225.3,0.44948]
[1725674126974,0.44946,2225.5,2225.4,0.3699]
[1725674127384,0.44944,2225.6,2225.4,0.81936]
[1725674127675,0.67680739,2225.7,2225.5,0.84694]
[1725674127864,0.67680739,2225.7,2225.6,0.44942]
[1725674128069,0.22739739,2225.7,2225.6,0.44942]
[1725674128369,1.74938,2225.9,2225.7,0.4494]
[1725674128565,0.22238863,2225.9,2225.8,0.81928]
[1725674129073,0.66762209,2226.0,2225.9,0.44936]
[1725674129267,0.66762209,2226.0,2225.9,0.3975]
[1725674129473,0.66762209,2226.0,2225.9,0.84686]
[1725674129974,0.44934,2226.1,2225.9,0.84686]
[1725674130178,1.46058,2226.4,2226.1,0.44932]
[1725674130179,0.44927,2226.4,2226.1,0.44932]
[1725674130480,0.66862854,2226.3,2226.2,0.3837]
[1725674130669,0.44928,2226.3,2226.2,0.3837]
[1725674131173,0.67933176,2226.3,2226.2,0.3837]
[1725674131477,0.44933,2226.1,2225.9,0.84686]
[1725674131673,0.44933,2226.1,2226.0,0.3837]
[1725674132981,0.44931,2226.2,2226.0,0.3837]
[1725674134878,0.44931,2226.2,2226.0,0.83304]
[1725674135380,0.4493,2226.3,2226.0,0.83304]
[1725674135574,0.44931,2226.2,2226.0,0.83304]
[1725674137274,0.44931,2226.2,2226.0,0.3837]
[1725674137986,0.44931,2226.2,2226.0,0.83304]
[1725674138578,0.04167766,2226.1,2226.0,0.83304]
[1725674138768,0.04167536,2226.1,2226.0,0.83304]
[1725674140670,0.44932,2226.1,2226.0,0.3837]
[1725674140877,0.49099508,2226.1,2226.0,0.3837]
[1725674141278,0.49099508,2226.1,2226.0,0.83304]
[1725674141484,0.49099508,2226.1,2226.0,0.3837]
[1725674142477,0.44932,2226.1,2226.0,0.3837]
[1725674142783,0.49099103,2226.1,2226.0,0.3837]
[1725674144584,0.44932,2226.1,2226.0,0.3837]
[1725674145372,0.44932,2226.1,2226.0,0.83304]
[1725674145577,0.44932,2226.2,2226.0,0.83304]
[1725674145777,0.4493,2226.3,2226.1,0.44932]
[1725674145978,0.4493,2226.2,2226.1,0.44932]
[1725674146682,0.44927,2226.4,2226.3,0.44928]
[1725674146878,0.44927,2226.4,2226.0,0.3837]
[1725674146879,0.44927,2226.4,2226.2,0.44929]
[1725674147191,0.44927,2226.4,2226.3,0.83168]
[1725674147683,0.44927,2226.4,2226.3,0.3824]
[1725674151684,1.3,2226.5,2226.0,0.83304]
[1725674151886,0.4493,2226.2,2226.1,0.377]
[1725674153184,0.4493,2226.3,2226.1,0.82632]
[1725674153385,0.44928,2226.3,2226.1,0.82632]
[1725674154392,0.4493,2226.2,2226.1,0.82632]
[1725674154894,0.4493,2226.2,2226.1,0.377]
[1725674158387,0.4493,2226.2,2226.1,0.82632]
[1725674158899,0.4493,2226.2,2226.1,0.377]
[1725674160097,0.4493,2226.2,2226.1,0.82632]
[1725674160286,2.42314,2226.5,2226.1,0.82632]
[1725674160482,0.44928,2226.3,2226.2,0.4493]
[1725674161294,0.44928,2226.3,2226.1,0.82631]
[1725674161897,0.44928,2226.3,2226.2,0.4493]
[1725674162088,0.44927,2226.4,2226.1,0.377]
[1725674162290,0.44926,2226.5,2226.3,0.44927]
[1725674162604,0.44926,2226.4,2226.3,0.44927]
[1725674163997,0.44926,2226.4,2226.1,0.377]
[1725674163998,0.44926,2226.4,2226.2,0.44929]
[1725674167302,0.44936,2225.9,2225.7,1.17727125]
[1725674167596,0.44936,2225.9,2225.8,0.7493]
[1725674168999,0.44936,2226.0,2225.8,1.19868]
[1725674169899,0.44936,2226.0,2225.9,0.44936]
[1725674170092,0.44934,2226.1,2225.9,0.44936]
[1725674170989,0.44934,2226.0,2225.9,0.44936]
[1725674171197,1.12328,2226.2,2225.8,0.7493]
[1725674171391,0.44936,2226.0,2225.8,1.19868]
[1725674171600,0.44936,2225.9,2225.8,1.19868]
[1725674172506,0.44936,2225.9,2225.8,2.37595125]
[1725674173494,0.44936,2225.9,2225.8,4.62401273]
[1725674174297,0.44936,2226.0,2225.8,4.62401273]
[1725674174498,0.44936,2226.0,2225.8,2.37595125]
[1725674174798,0.44931,2226.2,2226.0,0.44933]
[1725674175300,0.44931,2226.2,2226.0,1.62660125]
[1725674175498,0.44931,2226.2,2226.0,1.17727125]
[1725674175799,3.6571,2226.3,2226.0,1.17727125]
[1725674176200,3.6571,2226.3,2225.9,4.5078]
[1725674176609,3.2078,2226.3,2226.2,0.4493]
[1725674177810,3.65708,2226.3,2226.2,0.4493]
[1725674178107,3.65708,2226.3,2226.2,1.1917]
[1725674178507,3.2078,2226.3,2226.2,1.1917]
[1725674180302,3.2078,2226.3,2226.2,5.6837]
[1725674180510,0.44925,2226.5,2226.3,0.44926]
[1725674180708,0.44925,2226.5,2226.2,5.2344]
[1725674180709,0.44925,2226.5,2226.4,0.44926]
[1725674181804,3.65704,2226.6,2226.4,0.44926]
[1725674182810,1.12297,2226.8,2226.5,0.44924]
[1725674183121,0.4492,2226.7,2226.6,0.7617]
[1725674183309,0.4492,2226.7,2226.6,1.21092]
[1725674183519,0.44919,2226.8,2226.6,2.51091]
[1725674184818,0.4492,2226.7,2226.6,2.51091]
[1725674185106,0.4492,2226.7,2226.6,2.0617]
[1725674185307,0.4492,2226.7,2226.6,0.7617]
[1725674185704,0.44924,2226.5,2226.3,3.39244813]
[1725674185911,0.44924,2226.5,2226.4,0.7642]
[1725674188313,0.44924,2226.5,2226.4,1.21346]
[1725674188816,0.44924,2226.6,2226.4,1.21346]
[1725674189208,0.44924,2226.5,2226.4,2.51346]
[1725674190302,0.44924,2226.5,2226.4,2.0642]
[1725674190715,0.44924,2226.5,2226.4,2.51346]
[1725674191212,0.44922,2226.7,2226.5,0.44923]
[1725674191716,0.44922,2226.6,2226.5,0.44923]
[1725674193817,0.44922,2226.7,2226.6,0.44922]
[1725674194210,0.44922,2226.7,2226.5,0.44923]
[1725674194817,0.44919,2226.8,2226.7,0.4492]
[1725674195026,0.44919,2226.8,2226.5,1.3]
[1725674195214,0.44919,2226.8,2226.7,0.4492]
[1725674197522,0.44918,2226.8,2226.7,0.4492]
[1725674198224,3.65698,2226.9,2226.7,0.4492]
[1725674198426,3.65698,2226.9,2226.8,0.7792]
[1725674198719,0.44918,2226.9,2226.8,0.7792]
[1725674207428,0.44915,2227.0,2226.9,0.44916]
[1725674208021,0.44915,2227.0,2226.8,2.52837]
[1725674208327,8.15035784,2227.1,2227.0,0.44914]
[1725674208629,0.44914,2227.1,2227.0,1.74914]
[1725674209031,0.4491,2227.2,2227.0,1.3]
[1725674209329,0.4491,2227.3,2227.1,1.74912]
[1725674209524,0.4491,2227.3,2227.2,0.7706]
[1725674220032,0.4491,2227.3,2227.2,0.3784]
[1725674222830,0.4491,2227.3,2227.2,0.8275]
[1725674224535,0.4491,2227.3,2227.2,0.3784]
[1725674224834,0.4491,2227.3,2227.2,2.1275]
[1725674226935,3.65688,2227.4,2227.2,2.1275]
[1725674227246,3.65688,2227.4,2227.3,0.3779]
[1725674228035,0.44908,2227.3,2227.2,0.3784]
[1725674228336,0.44908,2227.3,2227.0,1.3]
[1725674228337,0.44912,2227.1,2227.0,0.3779]
[1725674228560,1.12277,2227.2,2226.9,0.3768]
[1725674228561,0.44914,2227.0,2226.9,0.3768]
[1725674229040,0.44914,2227.0,2226.9,0.82596]
[1725674229343,0.44914,2227.1,2226.9,0.82596]
[1725674229540,0.44913,2227.1,2227.0,0.44914]
[1725674229847,0.44913,2227.1,2227.0,1.74914]
[1725674230537,4.3305,2227.4,2227.2,0.4491]
[1725674230538,0.44909,2227.3,2227.2,0.4491]
[1725674232038,3.65687,2227.4,2227.3,0.44908]
[1725674232244,3.65687,2227.4,2227.3,0.81518]
[1725674232439,3.65687,2227.4,2227.3,0.3661]
[1725674232640,3.2078,2227.4,2227.3,0.81518]
[1725674233837,3.2078,2227.4,2227.3,6.60478]
[1725674235441,3.69854003,2227.4,2227.3,2.11518]
[1725674235738,0.04168003,2227.4,2227.3,2.11518]
[1725674236039,0.04168003,2227.4,2227.3,6.60478]
[1725674236241,0.44904,2227.5,2227.3,6.60477]
[1725674236445,0.04169614,2227.4,2227.3,2.11517]
[1725674237042,0.04169614,2227.4,2227.3,6.60477]
[1725674239742,0.04169614,2227.4,2227.3,7.00337]
[1725674240132,0.44904,2227.5,2227.4,0.44906]
[1725674240535,0.49078027,2227.5,2227.3,2.51377]
[1725674240736,0.04174027,2227.4,2227.3,2.51377]
[1725674241143,0.49080027,2227.4,2227.3,7.00337]
[1725674241343,0.49080027,2227.4,2227.3,2.51377]
[1725674241943,0.49080089,2227.4,2227.3,2.51377]
[1725674242146,0.49080089,2227.4,2227.3,0.7647]
[1725674242346,1.12271,2227.3,2227.0,2.47727125]
[1725674242546,0.4491,2227.2,2227.1,0.7452]
[1725674243438,1.12281,2227.1,2226.7,0.44919]
[1725674243639,0.44918,2226.9,2226.8,0.3673]
[1725674243946,0.44918,2226.9,2226.8,2.11648]
[1725674244445,0.44918,2226.8,2226.7,1.6779]
[1725674246547,0.44918,2226.9,2226.7,2.1271]
[1725674246743,0.44918,2226.8,2226.7,1.6779]
[1725674246945,0.44918,2226.8,2226.7,2.1271]
[1725674247248,4.33064,2227.1,2226.8,0.44918]
[1725674247443,0.44916,2227.0,2226.9,0.3938]
[1725674248640,0.44916,2227.0,2226.9,0.84296]
[1725674249249,0.44914,2227.1,2226.9,0.84296]
[1725674249549,1.12273,2227.3,2226.9,0.84296]
[1725674249844,0.44914,2227.0,2226.9,0.3938]
[1725674250040,0.44918,2226.8,2226.7,0.3779]
[1725674250244,0.67517898,2226.8,2226.7,0.3779]
[1725674251149,0.4492,2226.7,2226.6,0.3722]
[1725674251351,0.44927,2226.4,2226.3,0.7482]
[1725674251536,0.44927,2226.4,2226.3,4.7618197]
[1725674252149,0.44927,2226.4,2226.3,4.17284091]
[1725674252350,0.44927,2226.4,2226.3,3.42464091]
[1725674253046,0.44927,2226.4,2226.3,3.42467699]
[1725674253351,3.65706,2226.5,2226.3,5.57045699]
[1725674253555,0.44926,2226.4,2226.3,7.33636387]
[1725674253851,0.44926,2226.4,2226.3,6.15943578]
[1725674254148,0.44926,2226.4,2226.3,5.71015578]
[1725674255348,0.44926,2226.4,2226.3,3.46240688]
[1725674256056,0.44926,2226.4,2226.3,3.91168688]
[1725674256743,0.44926,2226.4,2226.3,3.46240688]
[1725674256945,0.44926,2226.4,2226.3,1.76590688]
[1725674259450,0.44926,2226.4,2226.3,3.06590688]
[1725674259748,0.44926,2226.4,2226.3,3.43510688]
[1725674259950,0.44926,2226.4,2226.3,1.6692]
[1725674260552,0.44926,2226.4,2226.3,2.11848]
[1725674260755,0.44926,2226.5,2226.3,2.11848]